bitfinex/quotes_SOLUSD_20250522
["timestamp","ask_amount","ask_price","bid_price","bid_amount"]
[1747896777739,5.68375582,175.94,175.91,14.29504577]
[1747896778340,5.68375582,175.94,175.92,14.29504577]
[1747896780431,26.158299,175.96,175.93,14.29504577]
[1747896780636,60.258299,175.96,175.94,14.29504577]
[1747896781224,20.47490314,175.96,175.95,14.29504577]
[1747896785653,26.15812149,175.96,175.9,44.64964886]
[1747896785939,26.15812149,175.96,175.9,26.0]
[1747896786239,40.45316726,175.96,175.91,14.29504577]
[1747896786615,34.1,175.95,175.91,14.29504577]
[1747896786941,34.1,175.95,175.92,14.29504577]
[1747896787316,34.1,175.95,175.91,14.29504577]
[1747896788541,5.68375582,175.94,175.91,14.29504577]
[1747896789442,5.68375582,175.94,175.86,37.92694901]
[1747896789644,5.68375582,175.94,175.91,14.29504577]
[1747896791850,5.68343279,175.95,175.88,5.68564241]
[1747896792030,5.68343279,175.95,175.94,14.29504577]
[1747896792243,5.68343279,175.95,175.93,14.29504577]
[1747896793723,26.15807885,175.96,175.94,14.29504577]
[1747896793923,26.15807885,175.96,175.95,14.29504577]
[1747896794124,26.15807885,175.96,175.94,14.29504577]
[1747896796648,20.47490314,175.96,175.95,14.29504577]
[1747896797838,26.15801293,175.96,175.95,14.29504577]
[1747896798035,26.15801293,175.96,175.89,102.98038689]
[1747896798240,26.15801293,175.96,175.95,14.29504577]
[1747896800144,26.15801293,175.96,175.92,26.0]
[1747896800328,26.15801293,175.96,175.95,14.29504577]
[1747896801052,20.47490314,175.96,175.95,14.29504577]
[1747896801759,5.68205928,176.0,175.95,14.29504577]
[1747896801938,5.68149536,176.01,175.99,14.29504577]
[1747896802867,5.68149536,176.01,176.0,14.29504577]
[1747896803338,5.68149536,176.01,175.99,14.29504577]
[1747896803930,5.68117259,176.02,175.99,14.29504577]
[1747896806463,19.88339706,176.03,175.99,14.29504577]
[1747896807442,19.88339706,176.03,175.95,26.0]
[1747896807645,19.88339706,176.03,175.98,14.29504577]
[1747896808539,19.88339706,176.03,175.99,14.29504577]
[1747896810266,53.98339706,176.03,175.99,14.29504577]
[1747896811250,53.98339706,176.03,175.98,14.29504577]
[1747896811561,53.98339706,176.03,175.99,14.29504577]
[1747896811765,53.98339706,176.03,176.0,14.29504577]
[1747896811939,53.98339706,176.03,175.99,14.29504577]
[1747896812560,53.98339706,176.03,176.0,14.29504577]
[1747896813903,53.98339706,176.03,175.99,14.29504577]
[1747896815465,53.98339706,176.03,175.96,26.0]
[1747896815655,53.98339706,176.03,175.99,14.29504577]
[1747896819664,14.43720734,176.02,175.97,14.29504577]
[1747896819968,14.43720734,176.02,175.96,14.29504577]
[1747896820149,14.29504577,176.01,175.96,14.29504577]
[1747896820350,14.29504577,176.01,175.95,14.29504577]
[1747896821279,19.88636363,176.0,175.95,14.29504577]
[1747896821477,48.37504577,175.99,175.94,14.29504577]
[1747896822474,34.08,175.99,175.94,14.29504577]
[1747896823085,35.6452,175.99,175.94,14.29504577]
[1747896823975,19.8886237,175.98,175.94,14.29504577]
[1747896824978,19.8886237,175.98,175.91,26.0]
[1747896825179,19.8886237,175.98,175.94,14.29504577]
[1747896825560,14.29504577,175.97,175.89,26.0]
[1747896825754,14.29504577,175.97,175.92,14.29504577]
[1747896825981,14.20429503,176.01,175.96,14.29504577]
[1747896826279,48.30429503,176.01,175.97,14.29504577]
[1747896827566,14.29504577,176.0,175.93,26.0]
[1747896827765,48.30429503,176.01,175.97,14.29504577]
[1747896828084,53.98579039,176.01,175.97,14.29504577]
[1747896828577,53.98579039,176.01,175.96,14.29504577]
[1747896829278,14.43720734,176.0,175.92,26.0]
[1747896829489,14.29504577,175.98,175.89,83.0]
[1747896829683,0.14216157,176.0,175.95,14.29504577]
[1747896829991,0.14216157,176.0,175.96,14.29504577]
[1747896830172,94.28083616,176.01,175.96,14.29504577]
[1747896830173,79.98579039,176.01,175.96,14.29504577]
[1747896830370,53.98579039,176.01,175.97,14.29504577]
[1747896830687,53.98579039,176.01,175.96,14.29504577]
[1747896833191,68.28083616,176.01,175.95,14.29504577]
[1747896833699,5.68149536,176.01,176.0,14.29504577]
[1747896834889,19.88219028,176.04,176.0,14.29504577]
[1747896835063,19.88219028,176.04,176.01,14.29504577]
[1747896837663,5.68052715,176.04,176.03,14.29504577]
[1747896838989,5.68020448,176.05,176.03,14.29504577]
[1747896840885,19.88071569,176.05,175.97,26.0]
[1747896841071,0.14216157,176.04,175.96,26.0]
[1747896841264,0.14216157,176.04,176.0,14.29504577]
[1747896843489,5.68084985,176.03,176.0,14.29504577]
[1747896844992,5.68084985,176.03,176.01,14.29504577]
[1747896845184,5.68084985,176.03,176.02,14.29504577]
[1747896845489,5.67988185,176.06,176.02,14.29504577]
[1747896845694,5.67988185,176.06,176.04,14.29504577]
[1747896846371,5.67988185,176.06,176.03,14.29504577]
[1747896847683,19.87958649,176.06,176.02,14.29504577]
[1747896850299,19.87958649,176.06,176.03,14.29504577]
[1747896852400,5.67988185,176.06,176.04,14.29504577]
[1747896853102,5.67988185,176.06,176.05,14.29504577]
[1747896854189,5.67955926,176.07,176.05,14.29504577]
[1747896854393,5.67955926,176.07,176.06,14.29504577]
[1747896855504,26.0,176.04,175.95,1.5746]
[1747896855805,74.37504577,176.04,175.99,14.29504577]
[1747896856179,48.37504577,176.04,175.99,14.29504577]
[1747896856387,34.08,176.04,176.0,14.29504577]
[1747896856582,34.08,176.04,175.95,1.5746]
[1747896856787,34.08,176.04,176.0,14.29504577]
[1747896857002,48.37504577,176.04,175.95,1.5746]
[1747896857193,48.37504577,176.04,175.96,26.0]
[1747896857389,48.37504577,176.04,175.95,1.5746]
[1747896857390,19.88297448,176.03,175.99,14.29504577]
[1747896859695,19.88297448,176.03,175.95,27.5746]
[1747896860000,19.88297448,176.03,176.0,14.29504577]
[1747896860793,19.88297448,176.03,175.99,14.29504577]
[1747896861100,5.68084985,176.03,175.99,26.0]
[1747896861305,5.68084985,176.03,176.02,14.29504577]
[1747896862104,5.67988185,176.06,176.02,14.29504577]
[1747896862290,5.67988185,176.06,176.05,14.29504577]
[1747896863585,5.67988185,176.06,175.99,26.0]
[1747896863784,5.67988185,176.06,176.05,14.29504577]
[1747896864511,5.67988185,176.06,176.04,14.29504577]
[1747896865495,5.67988185,176.06,176.05,14.29504577]
[1747896867804,19.87619966,176.09,176.05,14.29504577]
[1747896867987,19.87619966,176.09,176.07,14.29504577]
[1747896868603,5.67891419,176.09,176.08,14.29504577]
[1747896870211,9.29283135,176.1,176.08,14.29504577]
[1747896870212,14.97149055,176.1,176.08,14.29504577]
[1747896870420,14.97149055,176.1,176.09,14.29504577]
[1747896871413,5.6786592,176.1,176.09,14.29504577]
[1747896871715,19.87203987,176.13,176.09,14.29504577]
[1747896871901,19.87203987,176.13,176.11,14.29504577]
[1747896872102,19.87203987,176.13,176.09,14.29504577]
[1747896872709,14.43720734,176.12,176.07,14.29504577]
[1747896872893,0.14216157,176.12,176.08,14.29504577]
[1747896873305,19.87203987,176.13,176.09,14.29504577]
[1747896874127,19.87203987,176.13,176.1,14.29504577]
[1747896875124,5.67762448,176.13,176.12,14.29504577]
[1747896876206,5.67697984,176.15,176.12,14.29504577]
[1747896876399,5.67697984,176.15,176.13,14.29504577]
[1747896877217,5.67697984,176.15,176.14,14.29504577]
[1747896877610,5.67697984,176.15,176.11,26.0]
[1747896877810,5.67697984,176.15,176.13,14.29504577]
[1747896878006,19.86942945,176.15,176.12,14.29504577]
[1747896878207,14.19244961,176.15,176.05,83.0]
[1747896878521,14.19244961,176.15,176.05,18.64964886]
[1747896878829,14.19244961,176.15,176.12,14.29504577]
[1747896879005,14.19244961,176.15,176.13,14.29504577]
[1747896879206,14.19244961,176.15,176.12,14.29504577]
[1747896880529,19.86942945,176.15,176.12,14.29504577]
[1747896881438,5.67697984,176.15,176.14,40.29504577]
[1747896882929,5.67665758,176.16,176.14,40.29504577]
[1747896883238,5.67665758,176.16,176.05,18.64964886]
[1747896883239,5.67665758,176.16,176.13,14.29504577]
[1747896883403,19.86830154,176.16,176.08,26.0]
[1747896883608,19.86830154,176.16,176.11,14.29504577]
[1747896883803,19.86830154,176.16,176.12,14.29504577]
[1747896885524,19.86830154,176.16,176.08,26.0]
[1747896885525,19.86830154,176.16,176.14,14.29504577]
[1747896885715,5.67665758,176.16,176.15,14.29504577]
[1747896886230,5.67601316,176.18,176.15,14.29504577]
[1747896886414,5.67601316,176.18,176.17,14.29504577]
[1747896887134,5.67569101,176.19,176.17,14.29504577]
[1747896887318,5.67569101,176.19,176.18,14.29504577]
[1747896888114,5.67536889,176.2,176.17,14.29504577]
[1747896888337,19.86379113,176.2,176.17,14.29504577]
[1747896888740,19.86379113,176.2,176.15,14.29504577]
[1747896889931,19.86379113,176.2,176.15,40.29504577]
[1747896890135,19.86379113,176.2,176.16,14.29504577]
[1747896891842,0.14216157,176.19,176.15,40.29504577]
[1747896892931,0.14216157,176.19,176.16,14.29504577]
[1747896893344,5.67601316,176.18,176.16,14.29504577]
[1747896894923,5.67601316,176.18,176.15,40.29504577]
[1747896896040,5.67601316,176.18,176.16,14.29504577]
[1747896897138,19.86379113,176.2,176.16,14.29504577]
[1747896899635,5.67601316,176.18,176.15,26.0]
[1747896900238,19.86604608,176.18,176.09,1.5047]
[1747896900452,34.06,176.17,176.14,26.0]
[1747896901150,34.06,176.17,176.14,40.29504577]
[1747896901859,5.67665758,176.16,176.14,40.29504577]
[1747896904646,19.86830154,176.16,176.13,14.29504577]
[1747896904850,19.86830154,176.16,176.14,14.29504577]
[1747896906448,19.86830154,176.16,176.11,26.0]
[1747896906655,19.86830154,176.16,176.14,14.29504577]
[1747896906947,19.86830154,176.16,176.13,14.29504577]
[1747896907132,19.86830154,176.16,176.12,14.29504577]
[1747896907327,19.86830154,176.16,176.11,26.0]
[1747896907533,19.86830154,176.16,176.12,14.29504577]
[1747896907736,0.14216157,176.15,176.1,26.0]
[1747896908057,34.06,176.14,176.1,40.29504577]
[1747896909044,5.67762448,176.13,176.12,14.29504577]
[1747896910057,5.67762448,176.13,176.06,26.0]
[1747896910244,5.67762448,176.13,176.12,14.29504577]
[1747896912661,34.16673145,176.13,176.06,26.0]
[1747896912850,14.29504577,176.09,176.05,10.12596555]
[1747896913054,48.35504577,176.08,176.03,14.29504577]
[1747896913259,34.06,176.07,175.99,6.1876]
[1747896913440,34.06,176.07,176.03,14.29504577]
[1747896913637,34.06,176.07,176.05,14.29504577]
[1747896913840,5.67988185,176.06,176.05,14.29504577]
[1747896917258,5.67988185,176.06,176.02,26.0]
[1747896917449,19.87958649,176.06,176.02,14.29504577]
[1747896917764,19.87958649,176.06,176.03,14.29504577]
[1747896919166,19.87958649,176.06,176.02,14.29504577]
[1747896920052,19.87958649,176.06,176.03,14.29504577]
[1747896920260,5.67923671,176.08,176.05,14.29504577]
[1747896920440,5.67923671,176.08,176.07,14.29504577]
[1747896921664,19.87661867,176.09,176.07,14.29504577]
[1747896921841,19.87661867,176.09,176.02,6.3829]
[1747896922240,19.87661867,176.09,176.07,14.29504577]
[1747896923941,19.87661867,176.09,176.08,14.29504577]
[1747896924544,19.87661867,176.09,176.07,14.29504577]
[1747896924743,19.87661867,176.09,176.08,14.29504577]
[1747896925360,19.87661867,176.09,176.07,14.29504577]
[1747896927166,19.87661867,176.09,176.0,97.29504577]
[1747896927351,19.87661867,176.09,176.06,14.29504577]
[1747896927754,19.87661867,176.09,176.05,14.29504577]
[1747896927956,19.87661867,176.09,176.04,14.29504577]
[1747896928671,0.14216157,176.06,175.99,83.0]
[1747896928845,34.08,176.05,176.01,14.29504577]
[1747896929366,5.68052715,176.04,176.01,14.29504577]
[1747896930076,19.88184503,176.04,175.97,6.4401]
[1747896930393,19.88184503,176.04,176.01,14.29504577]
[1747896930951,19.88184503,176.04,176.02,14.29504577]
[1747896931771,19.88184503,176.04,176.01,14.29504577]
[1747896932174,19.88184503,176.04,175.95,18.64964886]
[1747896932359,19.88184503,176.04,176.01,14.29504577]
[1747896933672,19.88184503,176.04,175.95,18.64964886]
[1747896934005,19.88184503,176.04,176.01,14.29504577]
[1747896934682,19.88184503,176.04,176.0,14.29504577]
[1747896934882,19.88184503,176.04,175.94,110.5762]
[1747896935181,19.88184503,176.04,176.01,14.29504577]
[1747896935689,14.43720734,176.03,175.94,1.5762]
[1747896935867,14.29504577,176.01,175.9,18.64964886]
[1747896936070,14.29504577,175.99,175.9,18.64964886]
[1747896936387,48.37504577,176.0,175.94,14.29504577]
[1747896936572,14.29504577,175.99,175.93,14.29504577]
[1747896937358,14.29504577,175.99,175.92,26.0]
[1747896937685,19.8886237,175.98,175.93,14.29504577]
[1747896938066,19.8886237,175.98,175.94,14.29504577]
[1747896939277,5.68246391,175.98,175.95,14.29504577]
[1747896939682,5.68214103,175.99,175.97,14.29504577]
[1747896939869,5.68214103,175.99,175.98,14.29504577]
[1747896946684,44.50174803,176.01,175.98,14.29504577]
[1747896946892,5.68174803,176.01,175.99,14.29504577]
[1747896947194,5.68117259,176.02,175.99,14.29504577]
[1747896948283,5.68117259,176.02,176.0,14.29504577]
[1747896950288,5.68084985,176.03,176.0,14.29504577]
[1747896951189,5.68084985,176.03,175.96,18.64964886]
[1747896951369,5.68084985,176.03,176.0,14.29504577]
[1747896951571,5.68084985,176.03,175.96,101.64964886]
[1747896951879,5.68084985,176.03,176.01,14.29504577]
[1747896952074,5.68084985,176.03,175.96,101.64964886]
[1747896952075,5.68084985,176.03,175.96,83.0]
[1747896952263,19.88297448,176.03,175.98,14.29504577]
[1747896952461,19.88297448,176.03,175.95,90.7287]
[1747896952683,19.88297448,176.03,175.99,14.29504577]
[1747896953091,5.68084985,176.03,176.0,14.29504577]
[1747896953591,5.68084985,176.03,175.99,14.29504577]
[1747896955674,19.88297448,176.03,175.99,14.29504577]
[1747896956073,19.88297448,176.03,176.0,14.29504577]
[1747896957374,5.68084985,176.03,176.0,14.29504577]
[1747896960096,5.68084985,176.03,175.96,18.64964886]
[1747896960283,5.68084985,176.03,176.0,14.29504577]
[1747896960679,5.68020448,176.05,176.0,14.29504577]
[1747896960892,19.88071569,176.05,176.0,14.29504577]
[1747896963110,34.17576146,176.05,175.99,14.29504577]
[1747896965903,19.88071569,176.05,176.0,14.29504577]
[1747896967087,0.5,176.04,176.0,14.29504577]
[1747896967711,14.29504577,176.01,175.9,89.1213]
[1747896967880,14.29504577,175.98,175.92,14.29504577]
[1747896968793,5.68278683,175.97,175.92,14.29504577]
[1747896970392,19.88975392,175.97,175.92,14.29504577]
[1747896970887,19.88975392,175.97,175.93,14.29504577]
[1747896971091,5.68278683,175.97,175.94,14.29504577]
[1747896972306,5.68214103,175.99,175.94,14.29504577]
[1747896973011,19.8874936,175.99,175.94,14.29504577]
[1747896974695,34.18253937,175.99,175.94,14.29504577]
[1747896976422,19.8874936,175.99,175.94,14.29504577]
[1747896976620,5.68214103,175.99,175.97,14.29504577]
[1747896976791,5.68149536,176.01,175.97,14.29504577]
[1747896978023,19.88523378,176.01,175.97,14.29504577]
[1747896979121,19.88523378,176.01,175.92,5.68437846]
[1747896979293,19.88523378,176.01,175.97,14.29504577]
[1747896979800,5.68149536,176.01,175.98,14.29504577]
[1747896981817,19.88410407,176.02,175.98,14.29504577]
[1747896981992,19.88410407,176.02,175.99,14.29504577]
[1747896982419,19.88410407,176.02,175.98,14.29504577]
[1747896983214,14.20293148,176.02,175.92,107.33397137]
[1747896983413,14.20293148,176.02,175.97,14.29504577]
[1747896984025,28.49797725,176.02,175.97,14.29504577]
[1747896984526,14.20293148,176.02,175.97,14.29504577]
[1747896985219,19.88410407,176.02,175.97,14.29504577]
[1747896985393,19.88410407,176.02,175.98,14.29504577]
[1747896986025,19.88410407,176.02,175.97,14.29504577]
[1747896986831,19.88410407,176.02,175.98,14.29504577]
[1747896987938,19.88410407,176.02,175.91,26.0]
[1747896987939,0.14216157,176.01,175.91,26.0]
[1747896988109,14.29504577,176.01,175.91,26.0]
[1747896988303,48.28996704,176.02,175.97,14.29504577]
[1747896988304,19.88410407,176.02,175.97,14.29504577]
[1747896991942,19.88410407,176.02,175.98,14.29504577]
[1747896992326,19.88410407,176.02,175.97,14.29504577]
[1747896993665,34.17914984,176.02,175.91,109.0]
[1747896993850,14.29504577,175.99,175.9,6.1213]
[1747896994088,14.29504577,175.99,175.89,8.19612254]
[1747896994089,19.8886237,175.98,175.93,14.29504577]
[1747896994229,53.9686237,175.98,175.93,14.29504577]
[1747896995642,53.9686237,175.98,175.94,14.29504577]
[1747896995840,53.9686237,175.98,175.89,8.19612254]
[1747896996156,53.9686237,175.98,175.94,14.29504577]
[1747896997140,53.9686237,175.98,175.95,14.29504577]
[1747896998459,53.9686237,175.98,175.89,22.49116831]
[1747896998460,14.43720734,175.97,175.89,6.54202254]
[1747896998633,14.43720734,175.97,175.92,14.29504577]
[1747896998831,14.43720734,175.97,175.91,14.29504577]
[1747896999245,19.89088428,175.96,175.91,14.29504577]
[1747896999835,19.89088428,175.96,175.93,14.29504577]
[1747897000236,19.89088428,175.96,175.92,14.29504577]
[1747897000546,19.89088428,175.96,175.91,14.29504577]
[1747897001389,19.89088428,175.96,175.89,6.54202254]
[1747897001534,19.89088428,175.96,175.91,14.29504577]
[1747897002948,34.18593005,175.96,175.9,14.29504577]
[1747897006176,14.43720734,175.94,175.89,6.54202254]
[1747897007348,0.14216157,175.91,175.89,6.54202254]
[1747897007860,14.43720734,175.91,175.86,14.29504577]
[1747897008046,19.89766912,175.9,175.86,14.29504577]
[1747897008556,19.89766912,175.9,175.87,14.29504577]
[1747897008742,19.89766912,175.9,175.88,14.29504577]
[1747897010059,14.2126208,175.9,175.82,51.15414886]
[1747897010267,14.2126208,175.9,175.88,14.29504577]
[1747897011562,14.2126208,175.9,175.86,14.29504577]
[1747897012247,14.2126208,175.9,175.87,14.29504577]
[1747897013354,14.2126208,175.9,175.86,14.29504577]
[1747897014379,0.14216157,175.89,175.85,14.29504577]
[1747897015040,14.43720734,175.89,175.84,14.29504577]
[1747897015236,0.14216157,175.87,175.83,14.29504577]
[1747897015545,19.89993176,175.88,175.84,14.29504577]
[1747897015958,19.89993176,175.88,175.85,14.29504577]
[1747897016587,14.21423697,175.88,175.85,14.29504577]
[1747897017578,14.21423697,175.88,175.84,14.29504577]
[1747897019263,19.89993176,175.88,175.84,14.29504577]
[1747897019752,53.99993176,175.88,175.84,14.29504577]
[1747897021342,39.78569479,175.88,175.86,14.29504577]
[1747897021548,5.68504832,175.9,175.87,14.29504577]
[1747897021755,5.68504832,175.9,175.88,14.29504577]
[1747897022260,5.68472514,175.91,175.89,14.29504577]
[1747897022977,19.97977091,175.91,175.84,6.3383]
[1747897023173,0.14216157,175.9,175.85,14.29504577]
[1747897024385,19.89880037,175.89,175.85,14.29504577]
[1747897024681,19.89880037,175.89,175.84,14.29504577]
[1747897024872,53.99880037,175.89,175.84,14.29504577]
[1747897027471,14.29504577,175.87,175.79,6.662]
[1747897027779,14.29504577,175.87,175.82,14.29504577]
[1747897028161,14.29504577,175.87,175.81,14.29504577]
[1747897028474,14.29504577,175.85,175.8,14.29504577]
[1747897029557,19.90445859,175.84,175.8,14.29504577]
[1747897030976,19.90445859,175.84,175.81,14.29504577]
[1747897031493,14.21747042,175.84,175.81,14.29504577]
[1747897031671,14.43720734,175.83,175.74,3.18480002]
[1747897031858,14.29504577,175.82,175.77,14.29504577]
[1747897032060,14.29504577,175.8,175.74,1.54990002]
[1747897032366,14.29504577,175.8,175.73,14.29504577]
[1747897032367,14.29504577,175.79,175.73,14.29504577]
[1747897032572,14.43720734,175.78,175.73,14.29504577]
[1747897032778,0.14216157,175.78,175.73,14.29504577]
[1747897033163,0.14216157,175.78,175.74,14.29504577]
[1747897033368,34.12,175.79,175.76,14.29504577]
[1747897033574,5.68892934,175.78,175.77,14.29504577]
[1747897033755,5.68892934,175.78,175.75,14.29504577]
[1747897033955,19.91125269,175.78,175.75,14.29504577]
[1747897034157,19.91125269,175.78,175.76,14.29504577]
[1747897035182,19.91125269,175.78,175.7,84.6543]
[1747897035359,19.91125269,175.78,175.74,14.29504577]
[1747897035563,14.22232335,175.78,175.74,14.29504577]
[1747897037072,14.22232335,175.78,175.75,14.29504577]
[1747897037482,14.22232335,175.78,175.7,1.6543]
[1747897037685,14.22232335,175.78,175.75,14.29504577]
[1747897037983,14.22232335,175.78,175.74,14.29504577]
[1747897038386,28.51736912,175.78,175.7,1.6543]
[1747897038588,28.51736912,175.78,175.73,14.29504577]
[1747897038788,14.22232335,175.78,175.73,14.29504577]
[1747897038966,14.22232335,175.78,175.75,14.29504577]
[1747897039569,14.22232335,175.78,175.76,14.29504577]
[1747897039986,14.22232335,175.78,175.75,14.29504577]
[1747897040170,5.68828213,175.8,175.76,14.29504577]
[1747897040371,5.68828213,175.8,175.7,25.99546681]
[1747897040687,5.68828213,175.8,175.76,14.29504577]
[1747897041165,19.90898747,175.8,175.76,14.29504577]
[1747897042785,19.90898747,175.8,175.7,108.99540906]
[1747897042988,19.90898747,175.8,175.76,14.29504577]
[1747897043371,19.90898747,175.8,175.75,14.29504577]
[1747897043568,0.14216157,175.79,175.74,14.29504577]
[1747897043977,0.14216157,175.79,175.7,1.6543]
[1747897044287,0.14216157,175.76,175.72,14.29504577]
[1747897044492,0.14216157,175.77,175.73,14.29504577]
[1747897045094,14.43720734,175.77,175.72,14.29504577]
[1747897045295,0.14216157,175.77,175.73,14.29504577]
[1747897045480,5.68957669,175.76,175.73,14.29504577]
[1747897045981,5.68957669,175.76,175.72,14.29504577]
[1747897046770,5.68957669,175.76,175.73,14.29504577]
[1747897047385,34.20856419,175.76,175.7,14.29504577]
[1747897047693,14.43720734,175.75,175.7,14.29504577]
[1747897047879,0.14216157,175.73,175.69,14.29504577]
[1747897049508,5.69054799,175.73,175.69,14.29504577]
[1747897049706,5.69054799,175.73,175.7,14.29504577]
[1747897050574,5.69054799,175.73,175.65,1.5951]
[1747897050775,14.2258693,175.74,175.71,14.29504577]
[1747897050975,14.2258693,175.74,175.7,14.29504577]
[1747897051507,14.43720734,175.73,175.63,6.4348]
[1747897051708,14.43720734,175.73,175.67,14.29504577]
[1747897051917,24.6691,175.7,175.59,11.43616196]
[1747897052094,26.0,175.67,175.59,4.12590003]
[1747897052420,26.0,175.67,175.61,14.29504577]
[1747897052574,0.14216157,175.68,175.62,14.29504577]
[1747897052778,0.14216157,175.68,175.57,5.69547282]
[1747897052779,5.6924916,175.67,175.63,14.29504577]
[1747897052977,5.6924916,175.67,175.56,30.55514978]
[1747897053177,14.29504577,175.66,175.56,4.55514978]
[1747897053415,0.14216157,175.66,175.61,14.29504577]
[1747897054188,0.14216157,175.64,175.59,14.29504577]
[1747897055221,19.92825826,175.63,175.58,14.29504577]
[1747897055512,19.92825826,175.63,175.57,14.29504577]
[1747897055513,34.22330403,175.63,175.57,14.29504577]
[1747897055727,19.92825826,175.63,175.58,14.29504577]
[1747897055888,19.92825826,175.63,175.59,14.29504577]
[1747897056394,19.92825826,175.63,175.6,14.29504577]
[1747897056703,19.92825826,175.63,175.54,11.17205754]
[1747897056704,19.98883384,175.63,175.57,14.29504577]
[1747897056885,19.92825826,175.63,175.59,14.29504577]
[1747897057405,14.23447019,175.63,175.59,14.29504577]
[1747897058707,14.23447019,175.63,175.58,14.29504577]
[1747897059004,14.23447019,175.63,175.59,14.29504577]
[1747897059409,14.23447019,175.63,175.6,14.29504577]
[1747897059906,5.69313976,175.65,175.61,14.29504577]
[1747897060107,5.69313976,175.65,175.55,18.64964886]
[1747897060403,34.22103494,175.65,175.59,14.29504577]
[1747897060704,19.92598917,175.65,175.61,14.29504577]
[1747897061403,5.69281566,175.66,175.63,14.29504577]
[1747897062610,5.6924916,175.67,175.63,14.29504577]
[1747897062810,19.9237206,175.67,175.63,14.29504577]
[1747897063406,19.9237206,175.67,175.64,14.29504577]
[1747897063606,19.9237206,175.67,175.63,14.29504577]
[1747897064012,19.9237206,175.67,175.64,14.29504577]
[1747897064210,19.9237206,175.67,175.65,14.29504577]
[1747897064716,5.69184358,175.69,175.65,14.29504577]
[1747897064913,19.92145255,175.69,175.65,14.29504577]
[1747897065319,19.92145255,175.69,175.66,14.29504577]
[1747897065692,34.21649832,175.69,175.6,1.621]
[1747897065891,34.21649832,175.69,175.64,14.29504577]
[1747897066197,19.92145255,175.69,175.6,1.621]
[1747897066514,19.92145255,175.69,175.65,14.29504577]
[1747897066906,34.21649832,175.69,175.63,14.29504577]
[1747897067298,14.43720734,175.68,175.63,14.29504577]
[1747897067499,0.14216157,175.68,175.63,14.29504577]
[1747897067898,19.92145255,175.69,175.64,14.29504577]
[1747897068228,34.21649832,175.69,175.6,1.621]
[1747897068520,14.43720734,175.68,175.63,14.29504577]
[1747897068905,19.9237206,175.67,175.63,14.29504577]
[1747897069900,19.9237206,175.67,175.65,14.29504577]
[1747897070317,19.9237206,175.67,175.59,26.0]
[1747897070502,19.9237206,175.67,175.65,14.29504577]
[1747897070710,5.6924916,175.67,175.66,14.29504577]
[1747897070905,19.92076497,175.7,175.66,14.29504577]
[1747897073021,14.22924534,175.7,175.66,14.29504577]
[1747897074311,19.92076497,175.7,175.67,14.29504577]
[1747897074520,19.92076497,175.7,175.68,14.29504577]
[1747897075022,5.69151963,175.7,175.69,14.29504577]
[1747897076115,5.69087184,175.72,175.69,14.29504577]
[1747897076310,5.69087184,175.72,175.7,14.29504577]
[1747897076517,5.69087184,175.72,175.71,14.29504577]
[1747897077622,41.50916955,175.73,175.71,14.29504577]
[1747897077818,41.50916955,175.73,175.72,14.29504577]
[1747897079235,41.50916955,175.73,175.7,14.29504577]
[1747897080009,70.03058531,175.73,175.68,14.29504577]
[1747897081733,55.73553954,175.73,175.68,14.29504577]
[1747897082234,104.17058531,175.73,175.68,14.29504577]
[1747897082411,0.14216157,175.72,175.63,26.0]
[1747897082612,14.43720734,175.72,175.67,14.29504577]
[1747897083933,0.14216157,175.72,175.68,14.29504577]
[1747897084535,5.69119572,175.71,175.68,14.29504577]
[1747897084706,19.91918502,175.71,175.67,14.29504577]
[1747897085129,0.14216157,175.7,175.66,14.29504577]
[1747897085720,0.14216157,175.7,175.67,14.29504577]
[1747897086830,5.69184358,175.69,175.68,14.29504577]
[1747897088033,14.43720734,175.7,175.65,26.0]
[1747897088241,14.29504577,175.69,175.65,26.0]
[1747897088437,14.29504577,175.68,175.63,14.29504577]
[1747897089141,14.29504577,175.69,175.64,14.29504577]
[1747897089543,16.05310734,175.7,175.64,14.29504577]
[1747897090238,19.92145255,175.69,175.64,14.29504577]
[1747897090441,34.21649832,175.69,175.64,14.29504577]
[1747897091660,0.14216157,175.68,175.64,14.29504577]
[1747897092143,0.14216157,175.68,175.65,14.29504577]
[1747897092737,0.14216157,175.68,175.64,14.29504577]
[1747897093315,5.6924916,175.67,175.64,14.29504577]
[1747897094940,5.6924916,175.67,175.62,26.0]
[1747897095147,5.6924916,175.67,175.64,14.29504577]
[1747897095845,19.92258651,175.68,175.64,14.29504577]
[1747897096546,19.92258651,175.68,175.65,14.29504577]
[1747897097955,14.23041894,175.68,175.64,14.29504577]
[1747897098326,28.52546471,175.68,175.63,14.29504577]
[1747897099431,34.21763228,175.68,175.63,14.29504577]
[1747897100353,0.14216157,175.67,175.63,14.29504577]
[1747897100558,5.69281566,175.66,175.63,14.29504577]
[1747897103935,5.69281566,175.66,175.62,26.0]
[1747897103936,19.92485482,175.66,175.62,14.29504577]
[1747897104265,14.43720734,175.65,175.6,14.29504577]
[1747897104446,1.5192,175.64,175.53,88.6969673]